bitfinex-derivatives/quotes_SOLF0:USTF0_20251101
["timestamp","ask_amount","ask_price","bid_price","bid_amount"]
[1762006803062,2.97364897,184.22,184.15,2.87]
[1762006803259,4.40877266,184.21,184.15,2.87]
[1762006803567,0.85,184.24,184.16,2.87]
[1762006803756,4.40995993,184.23,184.16,2.87]
[1762006803956,4.40995993,184.22,184.16,2.87]
[1762006804161,4.40995993,184.21,184.16,2.87]
[1762006804363,0.85,184.24,184.16,2.87]
[1762006804564,4.41152256,184.23,184.16,2.87]
[1762006804766,4.41152256,184.22,184.16,2.87]
[1762006804970,4.41152256,184.21,184.16,2.87]
[1762006805262,0.85,184.24,184.16,2.87]
[1762006805467,4.41309368,184.23,184.16,2.87]
[1762006805666,4.41309368,184.22,184.16,2.87]
[1762006805867,0.85,184.27,184.17,2.87]
[1762006806060,4.41316135,184.26,184.17,2.87]
[1762006806261,4.41316135,184.25,184.17,2.87]
[1762006806463,4.41316135,184.24,184.17,2.87]
[1762006806661,4.41316135,184.23,184.17,2.87]
[1762006806866,4.41316135,184.22,184.17,2.87]
[1762006807067,2.12364897,184.25,184.17,2.87]
[1762006807366,5.26509484,184.24,184.17,2.87]
[1762006807570,2.12364897,184.25,184.17,2.87]
[1762006807571,5.26509484,184.23,184.17,2.87]
[1762006807871,2.97364897,184.2,184.14,7.89839415]
[1762006808068,0.85,184.18,184.1,7.89839415]
[1762006808366,6.53874381,184.17,184.1,7.89839415]
[1762006808568,4.41509484,184.16,184.1,7.89839415]
[1762006808764,2.12364897,184.17,184.1,7.89839415]
[1762006808964,4.41609668,184.16,184.1,7.89839415]
[1762006809175,2.12364897,184.17,184.11,7.89839415]
[1762006809363,4.41501444,184.16,184.12,2.87]
[1762006809566,2.12364897,184.2,184.13,2.87]
[1762006809762,4.41519169,184.19,184.13,2.87]
[1762006809971,4.41519169,184.18,184.13,2.87]
[1762006810176,2.12364897,184.2,184.13,2.87]
[1762006810377,4.41446791,184.19,184.13,2.87]
[1762006810570,0.85,184.21,184.13,2.87]
[1762006810770,4.41469784,184.2,184.14,2.87]
[1762006811078,2.12364897,184.23,184.15,2.87]
[1762006811271,4.41487208,184.22,184.16,2.87]
[1762006811469,2.12364897,184.23,184.16,2.87]
[1762006811674,4.41427583,184.22,184.16,2.87]
[1762006811868,0.85,184.25,184.16,2.87]
[1762006812070,2.12364897,184.26,184.16,2.87]
[1762006812071,5.26427583,184.24,184.16,2.87]
[1762006812376,4.41427583,184.23,184.16,2.87]
[1762006812572,0.85,184.24,184.16,2.87]
[1762006812573,0.85,184.24,184.17,2.87]
[1762006812773,4.41410313,184.23,184.17,2.87]
[1762006812968,0.85,184.28,184.18,2.87]
[1762006813176,4.4142817,184.27,184.19,2.87]
[1762006813376,4.4142817,184.26,184.19,2.87]
[1762006813574,0.85,184.28,184.2,2.87]
[1762006813774,4.4144114,184.27,184.2,2.87]
[1762006813975,4.4144114,184.26,184.2,2.87]
[1762006814175,0.85,184.28,184.2,4.99364897]
[1762006814375,4.4145342,184.27,184.2,4.99364897]
[1762006814569,4.4145342,184.26,184.2,4.99364897]
[1762006814766,0.85,184.28,184.2,4.99364897]
[1762006814977,4.41453369,184.27,184.2,4.99364897]
[1762006815177,4.41453369,184.26,184.2,4.99364897]
[1762006815471,2.97364897,184.32,184.21,2.87]
[1762006815672,8.87878733,184.31,184.21,2.87]
[1762006815881,2.12364897,184.32,184.21,2.87]
[1762006815882,8.87878733,184.3,184.21,2.87]
[1762006816072,4.41471813,184.29,184.21,2.87]
[1762006816272,4.41471813,184.28,184.21,2.87]
[1762006816467,4.41471813,184.27,184.21,2.87]
[1762006816669,0.85,184.3,184.21,2.87]
[1762006816870,4.41462681,184.29,184.21,2.87]
[1762006817177,4.41462681,184.28,184.22,2.77]
[1762006817477,0.85,184.3,184.24,2.77]
[1762006817678,4.41456738,184.29,184.24,2.77]
[1762006817880,4.41456738,184.28,184.24,2.77]
[1762006818071,0.85,184.3,184.24,2.77]
[1762006818271,4.41456656,184.29,184.24,2.77]
[1762006818473,4.41456656,184.28,184.24,2.77]
[1762006818770,0.86,184.33,184.24,2.77]
[1762006818979,4.41477063,184.32,184.24,2.77]
[1762006819179,4.41477063,184.31,184.24,2.77]
[1762006819477,4.41477063,184.3,184.24,2.77]
[1762006819678,4.41477063,184.29,184.24,2.77]
[1762006819874,4.4146354,184.28,184.24,2.77]
[1762006820581,0.86,184.29,184.24,2.77]
[1762006820782,0.86,184.27,184.23,2.12364897]
[1762006821074,4.41459904,184.27,184.24,2.82]
[1762006821377,0.86,184.31,184.24,2.82]
[1762006821682,4.41455589,184.3,184.24,2.82]
[1762006821882,5.27455589,184.29,184.24,2.82]
[1762006822083,0.86,184.29,184.24,2.82]
[1762006822487,4.48728135,184.28,184.24,2.82]
[1762006822682,0.86,184.29,184.24,2.82]
[1762006822884,4.48733734,184.28,184.24,2.82]
[1762006823080,0.86,184.29,184.24,2.82]
[1762006823281,4.4874764,184.28,184.24,2.82]
[1762006823584,0.86,184.29,184.24,2.82]
[1762006823782,4.48753936,184.28,184.24,2.82]
[1762006823985,0.86,184.29,184.24,2.82]
[1762006824185,4.48753936,184.28,184.24,2.82]
[1762006824485,0.86,184.29,184.24,2.82]
[1762006824685,4.48757739,184.28,184.24,2.82]
[1762006824888,0.86,184.29,184.24,2.82]
[1762006825186,0.86,184.27,184.21,80.92]
[1762006825377,4.48757739,184.26,184.22,2.82]
[1762006825577,0.86,184.27,184.22,2.82]
[1762006825880,0.86,184.3,184.22,2.82]
[1762006826083,4.48774981,184.29,184.22,2.82]
[1762006826283,4.48774981,184.28,184.23,2.82]
[1762006826478,0.86,184.33,184.23,2.82]
[1762006826686,4.48822496,184.32,184.23,2.82]
[1762006826886,4.48822496,184.31,184.23,2.82]
[1762006827184,4.48822496,184.3,184.23,2.82]
[1762006827385,4.48822496,184.29,184.23,2.82]
[1762006827588,4.48822496,184.28,184.23,2.82]
[1762006827778,0.86,184.33,184.23,2.82]
[1762006827974,4.48858012,184.32,184.23,2.82]
[1762006828178,4.48858012,184.31,184.23,2.82]
[1762006828391,4.48858012,184.3,184.24,2.82]
[1762006828584,4.48858012,184.29,184.24,2.82]
[1762006828782,0.86,184.33,184.24,2.82]
[1762006828988,4.48928639,184.32,184.24,2.82]
[1762006829188,4.48928639,184.31,184.24,2.82]
[1762006829391,4.48928639,184.3,184.25,2.82]
[1762006829581,4.48928639,184.29,184.25,2.82]
[1762006829895,0.86,184.27,184.21,5.02839415]
[1762006830088,0.86,184.25,184.19,5.02839415]
[1762006830691,5.35029956,184.24,184.19,2.82]
[1762006830895,0.86,184.24,184.19,2.82]
[1762006831188,0.86,184.24,184.19,7.84839415]
[1762006831393,4.49299005,184.23,184.19,7.84839415]
[1762006831595,0.86,184.24,184.19,7.84839415]
[1762006831795,4.50041557,184.28,184.2,2.82]
[1762006832099,4.49294213,184.27,184.2,7.84839415]
[1762006832298,5.35294213,184.26,184.2,7.84839415]
[1762006832500,0.86,184.24,184.2,2.82]
[1762006832687,4.49433581,184.23,184.2,2.82]
[1762006832996,0.86,184.24,184.2,2.82]
[1762006833388,4.49493516,184.23,184.2,2.82]
[1762006833597,0.86,184.24,184.2,2.82]
[1762006833896,0.86,184.24,184.2,7.84839415]
[1762006834489,0.86,184.24,184.2,2.82]
[1762006834998,3.64287743,184.27,184.2,2.82]
[1762006835294,4.49568623,184.26,184.2,2.82]
[1762006835495,4.49568623,184.25,184.2,2.82]
[1762006835698,4.49568623,184.24,184.2,2.82]
[1762006835897,0.86,184.28,184.2,2.82]
[1762006836094,4.49653783,184.27,184.2,2.82]
[1762006836302,4.49653783,184.26,184.2,2.82]
[1762006836500,4.49653783,184.25,184.2,2.82]
[1762006836705,4.49653783,184.24,184.2,2.82]
[1762006837000,4.49653783,184.23,184.2,2.82]
[1762006837187,0.86,184.25,184.19,5.02839415]
[1762006837392,0.86,184.22,184.18,86.70839415]
[1762006837608,0.86,184.22,184.18,81.68]
[1762006837801,4.49761712,184.21,184.18,81.68]
[1762006838001,0.86,184.22,184.18,84.43]
[1762006838305,4.49826666,184.21,184.18,84.43]
[1762006838604,0.86,184.22,184.17,5.02839415]
[1762006838904,0.86,184.2,184.16,86.64839415]
[1762006839103,0.86,184.18,184.15,5.02839415]
[1762006839306,0.86,184.16,184.13,5.02839415]
[1762006839495,0.86,184.16,184.11,69.41839415]
[1762006839896,0.86,184.16,184.12,2.81]
[1762006840208,0.86,184.16,184.11,5.02839415]
[1762006840599,0.86,184.16,184.11,7.83839415]
[1762006840802,0.86,184.16,184.12,2.81]
[1762006841298,0.86,184.16,184.1,81.62]
[1762006841299,0.86,184.16,184.1,86.64839415]
[1762006841503,0.86,184.16,184.11,5.02839415]
[1762006842404,4.4931275,184.15,184.1,86.64839415]
[1762006842608,0.86,184.27,184.11,7.83839415]
[1762006842905,0.86,184.21,184.11,7.83839415]
[1762006843207,0.86,184.19,184.12,5.02839415]
[1762006843506,5.35315763,184.18,184.11,7.83839415]
[1762006843700,4.49315763,184.17,184.11,7.83839415]
[1762006843900,0.86,184.18,184.12,2.81]
[1762006844205,5.35234914,184.17,184.12,2.81]
[1762006844408,0.86,184.17,184.12,2.81]
[1762006844605,0.86,184.17,184.12,7.83839415]
[1762006844811,0.86,184.2,184.13,2.81]
[1762006845013,4.4917659,184.19,184.13,2.81]
[1762006845306,0.86,184.17,184.13,2.81]
[1762006845510,3.31437123,184.22,184.11,7.83839415]
[1762006845511,5.3517659,184.16,184.11,7.83839415]
[1762006845714,0.86,184.15,184.11,2.81]
[1762006845901,0.86,184.2,184.11,7.83839415]
[1762006846105,0.86,184.18,184.11,2.81]
[1762006846301,4.49107537,184.17,184.12,2.83]
[1762006846508,0.85,184.21,184.13,2.83]
[1762006846702,4.490259,184.2,184.13,2.83]
[1762006846909,4.490259,184.19,184.13,2.83]
[1762006847112,4.490259,184.18,184.13,2.83]
[1762006847312,0.85,184.2,184.13,2.83]
[1762006847511,4.48978595,184.19,184.13,2.83]
[1762006847812,0.85,184.17,184.13,2.83]
[1762006849416,3.75747304,184.21,184.13,2.83]
[1762006849417,5.33869665,184.2,184.13,2.83]
[1762006849606,4.48869665,184.19,184.13,2.83]
[1762006849903,4.48869665,184.18,184.13,2.83]
[1762006850103,0.85,184.2,184.13,2.83]
[1762006850311,4.48862657,184.19,184.13,2.83]
[1762006850512,4.48862657,184.18,184.13,2.83]
[1762006850815,0.85,184.2,184.13,2.83]
[1762006851013,0.85,184.18,184.13,2.83]
[1762006851217,5.33807364,184.17,184.13,2.83]
[1762006851514,0.85,184.17,184.13,2.83]
[1762006851714,0.85,184.2,184.13,2.83]
[1762006851914,4.48720338,184.19,184.13,2.83]
[1762006852116,5.33720338,184.18,184.13,2.83]
[1762006852315,0.85,184.18,184.13,2.83]
[1762006853313,4.44048016,184.18,184.13,2.83]
[1762006853516,0.85,184.22,184.13,2.83]
[1762006853517,0.85,184.22,184.14,2.83]
[1762006853715,4.44090999,184.21,184.14,2.83]
[1762006854019,4.44090999,184.2,184.14,2.83]
[1762006854309,0.85,184.22,184.14,2.83]
[1762006854511,4.44149411,184.21,184.14,2.83]
[1762006854714,0.85,184.25,184.15,2.83]
[1762006854910,4.441558,184.24,184.15,2.83]
[1762006855112,5.291558,184.23,184.16,2.83]
[1762006855318,0.85,184.21,184.13,2.83]
[1762006855517,4.441558,184.2,184.13,2.83]
[1762006855717,4.44159057,184.19,184.13,2.83]
[1762006855921,0.85,184.2,184.13,2.83]
[1762006857018,4.44099029,184.19,184.13,2.83]
[1762006857324,5.29099029,184.18,184.13,2.83]
[1762006857521,0.85,184.18,184.13,2.83]
[1762006858222,0.85,184.18,184.14,2.83]
[1762006861316,5.28999768,184.18,184.14,2.83]
[1762006861517,0.85,184.18,184.14,2.83]
[1762006862327,5.2899664,184.18,184.14,2.83]
[1762006862529,0.85,184.18,184.14,2.83]
[1762006863426,5.28941732,184.18,184.14,2.83]
[1762006863626,5.28941732,184.18,184.13,81.5]
[1762006863627,4.439606,184.17,184.13,81.5]
[1762006863818,0.85,184.16,184.13,81.5]
[1762006864529,9.05467689,184.19,184.13,84.33]
[1762006864726,5.29027565,184.18,184.13,84.33]
[1762006864932,0.85,184.18,184.14,2.83]
[1762006865322,3.76489666,184.2,184.14,2.83]
[1762006865521,5.29051046,184.19,184.14,2.83]
[1762006865722,0.85,184.17,184.14,2.83]
[1762006866032,5.29051046,184.17,184.14,2.83]
[1762006866234,0.85,184.17,184.14,2.83]
[1762006867922,0.85,184.17,184.1,2.83]
[1762006868224,6.63961147,184.3,184.1,2.83]
[1762006868225,0.85,184.15,184.1,2.83]
[1762006868423,5.2913068,184.14,184.1,2.83]
[1762006868619,0.85,184.14,184.1,2.83]
[1762006871532,0.85,184.12,184.08,81.4]
[1762006871725,0.85,184.1,184.06,2.83]
[1762006871926,4.44218969,184.09,184.06,84.23]
[1762006872135,8.27744291,184.23,184.06,84.23]
[1762006872136,0.85,184.08,184.06,81.4]
[1762006872727,0.85,184.1,184.06,2.83]
[1762006872930,4.44031841,184.09,184.06,2.83]
[1762006873331,0.85,184.1,184.06,2.83]
[1762006873533,4.44127893,184.09,184.06,2.83]
[1762006874230,0.85,184.1,184.06,2.83]
[1762006874527,4.44196366,184.09,184.06,2.83]
[1762006874830,0.85,184.1,184.06,2.83]
[1762006875135,4.44196366,184.09,184.06,2.83]
[1762006875332,0.85,184.1,184.06,2.83]
[1762006875533,4.44142122,184.09,184.06,2.83]
[1762006875735,0.85,184.1,184.06,2.83]
[1762006875933,4.4414506,184.09,184.06,2.83]
[1762006876134,0.85,184.1,184.06,2.83]
[1762006876331,4.44032141,184.09,184.06,2.83]
[1762006876635,0.85,184.1,184.06,2.83]
[1762006876935,4.44106416,184.09,184.06,2.83]
[1762006877235,0.87,184.15,184.06,2.83]
[1762006877428,4.44133482,184.14,184.06,2.83]
[1762006877635,4.44133482,184.13,184.06,2.83]
[1762006877835,0.87,184.18,184.06,2.83]
[1762006877836,4.44133482,184.12,184.06,2.83]
[1762006878032,0.87,184.18,184.06,2.83]
[1762006878231,8.20492949,184.17,184.07,2.94]
[1762006878439,4.44131037,184.16,184.08,2.94]
[1762006878629,4.44131037,184.15,184.08,2.94]
[1762006878829,0.87,184.18,184.09,2.94]
[1762006879133,4.44220447,184.17,184.09,2.94]
[1762006879331,4.44220447,184.16,184.09,2.94]
[1762006879538,4.44220447,184.15,184.09,2.94]
[1762006879835,0.87,184.18,184.09,2.94]
[1762006880030,4.44362611,184.17,184.09,2.94]
[1762006880338,4.44362611,184.16,184.09,2.94]
[1762006880634,4.44362611,184.15,184.09,2.94]
[1762006880823,4.44362611,184.14,184.09,2.94]
[1762006881021,0.87,184.18,184.09,2.94]
[1762006881227,5.30513532,184.17,184.09,2.94]
[1762006881429,9.07399873,184.16,184.09,2.94]
[1762006881630,4.44513532,184.15,184.09,2.94]
[1762006881826,5.30513532,184.14,184.09,2.94]
[1762006882032,4.44513532,184.13,184.09,2.94]
[1762006882239,0.86,184.14,184.09,2.94]
[1762006882240,4.41493069,184.12,184.09,2.94]
[1762006882441,0.86,184.14,184.09,2.94]
[1762006882636,4.41617359,184.13,184.09,2.94]
[1762006882836,0.86,184.17,184.09,2.94]
[1762006883146,8.18597197,184.16,184.09,2.94]
[1762006883332,8.18597197,184.15,184.09,2.94]
[1762006883640,0.86,184.13,184.09,2.94]
[1762006883840,4.41644131,184.12,184.09,2.94]
[1762006884039,0.86,184.16,184.09,2.94]
[1762006884334,8.18775617,184.15,184.09,2.94]
[1762006884536,8.18775617,184.14,184.09,2.94]
[1762006884728,4.41742976,184.13,184.09,2.94]
[1762006884929,0.86,184.11,184.07,2.92]
[1762006885137,4.41742976,184.1,184.07,2.92]
[1762006885338,0.86,184.14,184.07,2.92]
[1762006885534,9.04611145,184.13,184.07,2.92]
[1762006885736,0.86,184.11,184.07,2.92]
[1762006885941,4.41701302,184.1,184.07,2.92]
[1762006886241,0.86,184.16,184.07,2.92]
[1762006886441,0.86,184.14,184.07,2.92]
[1762006886741,9.04533341,184.13,184.07,2.92]
[1762006887044,0.86,184.11,184.07,2.92]
[1762006887341,4.41656578,184.1,184.07,2.92]
[1762006887539,0.86,184.11,184.07,2.92]
[1762006887842,4.41601831,184.1,184.07,2.92]
[1762006888042,4.41601831,184.09,184.07,2.92]
[1762006888336,0.86,184.11,184.06,84.2]
[1762006888527,2.12450431,184.16,184.04,2.92]
[1762006888528,0.86,184.09,184.04,2.92]
[1762006888727,5.27505439,184.08,184.05,81.26]
[1762006888942,0.86,184.08,184.05,81.26]
[1762006889142,5.7515,184.08,184.05,81.26]
[1762006889336,0.86,184.07,184.05,81.26]
[1762006889635,4.8918,184.06,184.01,7.97448739]
[1762006889837,0.86,184.05,184.01,7.97448739]
[1762006890031,0.86,184.05,184.01,84.16]
[1762006890234,0.86,184.05,184.01,81.24]
[1762006890945,4.8928,184.02,184.01,81.24]
[1762006892844,4.8928,184.02,184.01,84.16]
[1762006893639,2.12450431,184.13,184.02,2.92]
[1762006893939,0.86,184.09,184.02,2.92]
[1762006894140,2.12450431,184.13,184.02,2.92]
[1762006894141,0.86,184.07,184.02,2.92]
[1762006894339,0.86,184.05,184.01,84.16]
[1762006895042,5.7524,184.04,184.01,81.24]
[1762006895245,4.8924,184.04,184.01,84.16]
[1762006895647,4.8924,184.04,184.02,2.92]
[1762006896047,5.7519,184.06,184.02,2.92]
[1762006898947,5.7523,184.05,184.01,84.16]
[1762006899748,5.7526,184.03,183.98,2.92]
[1762006899934,5.7526,184.03,183.97,14.39768188]
[1762006899935,5.7526,184.03,183.99,84.1]
[1762006900547,5.7531,184.02,183.99,84.1]
[1762006901844,5.7524,184.04,184.0,2.92]
[1762006902145,4.8924,184.04,184.0,2.92]
[1762006902335,4.8929,184.03,184.0,2.92]
[1762006903552,2.99450431,184.08,184.0,2.92]
[1762006903753,4.40323512,184.07,184.0,2.92]
[1762006904051,4.40323512,184.07,184.01,2.93]
[1762006904238,0.87,184.08,184.01,2.93]
[1762006904443,0.87,184.05,184.01,2.93]
[1762006905955,5.7623,184.05,184.01,2.93]
[1762006910357,4.8923,184.05,184.01,2.93]
[1762006910655,4.8916,184.07,184.01,2.93]
[1762006911358,4.8916,184.07,184.02,2.96]
[1762006911865,4.8909,184.1,184.02,2.96]
[1762006912046,4.40141469,184.09,184.03,8.01448739]
[1762006912250,4.8909,184.1,184.04,2.96]
[1762006912452,4.40280927,184.09,184.04,2.96]
[1762006913255,5.7602,184.12,184.04,2.96]
[1762006913454,4.40295351,184.11,184.05,2.96]
[1762006913654,4.40295351,184.1,184.05,2.96]
[1762006913854,0.87,184.12,184.05,2.96]
[1762006914150,4.40350313,184.11,184.05,2.96]
[1762006914350,4.40350313,184.1,184.05,2.96]
[1762006914566,0.87,184.12,184.05,2.96]
[1762006914764,4.40420672,184.11,184.05,2.96]
[1762006915062,9.29520672,184.1,184.05,2.96]
[1762006915267,4.40496573,184.09,184.05,2.96]
[1762006915465,4.891,184.1,184.05,2.96]
[1762006915666,4.40496522,184.09,184.05,2.96]
[1762006915963,0.87,184.1,184.03,5.05448739]
[1762006916157,5.27446109,184.09,184.02,2.96]
[1762006916366,4.40446109,184.08,184.03,2.96]
[1762006916560,7.61,184.07,184.05,2.96]
[1762006917064,7.61,184.07,184.06,2.96]
[1762006917959,7.61,184.07,184.06,8.01448739]
[1762006918969,7.61,184.07,184.06,2.96]
[1762006920772,7.61,184.07,184.06,8.01448739]
[1762006921065,7.61,184.07,184.06,2.96]
[1762006921463,4.79379154,184.07,184.06,8.02377443]
[1762006922864,4.79379154,184.07,184.06,2.96]
[1762006925672,0.87,184.06,184.02,5.06377443]
[1762006925870,0.87,184.06,184.0,9.63556382]
[1762006925871,5.27638471,184.05,184.01,2.96]
[1762006926073,0.87,184.05,184.01,2.96]
[1762006926366,4.8926,184.03,184.01,2.96]
[1762006926766,0.87,184.05,184.01,2.96]
[1762006927072,5.762,184.06,184.01,8.02377443]
[1762006927268,4.40746732,184.05,184.02,2.96]
[1762006927469,5.762,184.06,184.02,2.96]
[1762006927763,4.40797688,184.05,184.02,2.96]
[1762006927968,4.40798695,184.04,184.02,2.96]
[1762006928168,0.87,184.06,184.02,2.96]
[1762006928368,4.40892399,184.05,184.02,2.96]
[1762006928667,4.40892399,184.04,184.02,2.96]
[1762006928972,4.79379154,184.07,184.03,2.96]
[1762006929167,4.79379154,184.07,184.06,2.96]
[1762006930472,4.79379154,184.07,184.06,8.02982806]
[1762006930768,5.66379154,184.07,184.05,5.06982806]
[1762006930970,0.87,184.06,184.03,85.96982806]
[1762006931174,4.79379154,184.07,184.03,88.92982806]
[1762006931474,4.40755793,184.06,184.04,2.96]
[1762006931672,4.79379154,184.07,184.04,2.96]
[1762006931872,4.40861696,184.06,184.04,2.96]
[1762006932072,4.79379154,184.07,184.04,2.96]
[1762006932271,4.40939565,184.06,184.04,2.96]
[1762006932468,5.66379154,184.07,184.04,2.96]
[1762006932673,0.87,184.05,184.03,5.06982806]
[1762006932873,0.87,184.05,184.02,80.9]
[1762006932874,0.87,184.05,184.02,85.96982806]
[1762006933266,4.40943966,184.04,184.02,80.9]
[1762006933469,0.87,184.05,184.02,80.9]
[1762006933670,4.40977048,184.04,184.02,80.9]
[1762006933976,0.87,184.05,184.02,80.9]
[1762006934179,0.87,184.03,184.02,80.9]
[1762006934576,0.87,184.03,184.01,5.06982806]
[1762006934876,0.87,184.03,184.0,88.90982806]
[1762006935380,4.64653781,184.05,184.01,2.96]
[1762006935581,4.4094669,184.04,184.01,2.96]
[1762006935771,4.4094669,184.03,184.01,2.96]
[1762006936077,0.87,184.05,184.0,85.94982806]
[1762006936264,5.26953093,184.04,184.0,88.81982806]
[1762006936468,4.40953093,184.03,184.0,88.81982806]
[1762006936669,0.86,184.04,184.0,88.81982806]
[1762006936968,4.41020905,184.03,184.0,88.81982806]
[1762006937164,0.86,184.04,184.0,88.81982806]
[1762006937368,4.41043799,184.03,184.0,88.81982806]
[1762006937668,0.86,184.04,184.0,88.81982806]
[1762006937865,4.41043296,184.03,184.01,2.87]
[1762006938165,0.86,184.04,184.01,2.87]
[1762006938468,4.41040591,184.03,184.01,2.87]
[1762006938668,0.86,184.04,184.01,2.87]
[1762006938877,4.41040457,184.03,184.01,2.87]
[1762006939177,0.86,184.04,184.0,88.81982806]
[1762006939380,4.41031455,184.03,184.0,88.81982806]
[1762006939678,0.86,184.04,184.0,88.81982806]
[1762006939874,4.41037393,184.03,184.0,88.81982806]
[1762006940076,0.86,184.04,184.0,88.81982806]
[1762006940276,4.41039806,184.03,184.0,88.81982806]
[1762006940472,0.86,184.04,184.01,7.93982806]
[1762006940970,0.86,184.04,184.01,5.06982806]
[1762006941170,0.86,184.02,184.0,85.94982806]
[1762006941370,0.86,184.02,184.0,80.88]
[1762006942273,4.43917797,184.01,184.0,80.88]
[1762006942478,0.86,184.02,184.0,80.88]
[1762006943675,4.63448564,184.04,184.01,2.92]
[1762006943881,4.43908176,184.03,184.01,2.92]
[1762006944067,4.43908176,184.02,184.01,2.92]
[1762006946075,4.43908176,184.02,184.0,83.8]
[1762006946276,0.86,184.05,184.0,83.8]
[1762006946474,0.86,184.03,184.0,83.8]
[1762006946676,4.43894555,184.02,184.0,83.8]
[1762006946875,0.86,184.03,184.0,83.8]
[1762006947076,4.43894555,184.02,184.0,83.8]
[1762006947277,0.86,184.03,184.0,83.8]
[1762006947478,4.43914259,184.02,184.0,83.8]
[1762006947674,0.86,184.03,184.0,83.8]
[1762006947882,4.4394818,184.02,184.0,80.88]
[1762006948183,5.2994818,184.01,183.98,7.98982806]
[1762006948487,0.86,183.99,183.98,80.76]
[1762006948684,5.2994818,183.99,183.98,80.76]
[1762006951583,4.4394818,183.99,183.98,83.68]
[1762006951988,0.86,184.06,183.99,2.92]
[1762006952290,8.20896594,184.05,183.99,2.92]
[1762006952590,9.06896594,184.04,184.0,6.24386425]
[1762006952778,8.20896594,184.03,184.0,6.24386425]
[1762006952978,4.43680336,184.02,184.0,6.24386425]
[1762006953188,4.43680336,184.01,184.0,6.24386425]
[1762006955285,4.79379154,184.07,184.01,2.92]
[1762006955484,0.86,184.05,184.01,2.92]
[1762006955684,5.29563572,184.04,184.01,2.92]
[1762006955885,4.43563572,184.03,184.01,2.92]
[1762006956086,4.43563572,184.02,184.01,2.92]
[1762006958294,4.43563572,184.02,184.0,6.24386425]
[1762006958491,0.86,184.04,184.0,6.24386425]
[1762006958796,4.43759455,184.03,184.0,6.24386425]
[1762006958990,4.43759455,184.02,184.0,6.24386425]
[1762006959189,0.86,184.04,184.0,6.24386425]
[1762006959496,4.43830665,184.03,184.01,2.92]
[1762006959697,4.43830665,184.02,184.01,2.92]
[1762006960983,4.43830665,184.02,184.0,2.92]
[1762006961183,4.43830665,184.01,183.99,2.92]
[1762006961383,0.86,184.05,183.99,2.92]
[1762006961582,0.86,184.03,183.99,2.92]
[1762006961784,4.44330166,184.02,183.99,2.92]
[1762006961986,4.44330166,184.01,183.99,2.92]
[1762006962182,0.86,184.03,183.97,14.41302255]
[1762006962386,0.86,184.01,183.97,9.34319449]
[1762006962589,0.86,183.99,183.97,9.34319449]
[1762006962895,4.44385326,183.98,183.97,9.34319449]
[1762006963799,0.86,184.06,183.98,2.92]
[1762006964102,4.79379154,184.07,183.98,2.92]
[1762006964103,9.08185891,184.05,183.98,2.92]
[1762006964287,8.22185891,184.04,183.98,2.92]